[Event "Early-Titled-Tuesday-Blitz-March-05-2024"]
[Site "Chess.com"]
[Date "2024.03.05"]
[Round "3"]
[White "Al_Shima"]
[Black "xasid81"]
[Result "1-0"]
[WhiteElo "2432"]
[BlackElo "2573"]
[TimeControl "180+1"]
[EndTime "8:31:15 PST"]
[Termination "Al_Shima won by resignation"]

1. e4 {[%clk 0:02:57.4]} 1... c6 {[%clk 0:02:59.1]} 2. Nf3 {[%clk 0:02:57.5]}
2... d6 {[%clk 0:02:59.6]} 3. Nc3 {[%clk 0:02:58.4]} 3... Nf6 {[%clk 0:02:59.6]}
4. d4 {[%clk 0:02:58.7]} 4... Bg4 {[%clk 0:02:59.4]} 5. h3 {[%clk 0:02:58.4]}
5... Bxf3 {[%clk 0:02:59.5]} 6. Qxf3 {[%clk 0:02:59.3]} 6... e5 {[%clk
0:02:59.9]} 7. dxe5 {[%clk 0:02:38.2]} 7... dxe5 {[%clk 0:03:00.8]} 8. Bc4
{[%clk 0:02:16.5]} 8... Bb4 {[%clk 0:02:59]} 9. Bd2 {[%clk 0:02:12.7]} 9... O-O
{[%clk 0:02:55.5]} 10. a3 {[%clk 0:02:12]} 10... Ba5 {[%clk 0:02:49]} 11. Bg5
{[%clk 0:01:48.6]} 11... Bxc3+ {[%clk 0:02:43.7]} 12. bxc3 {[%clk 0:01:46.2]}
12... Nbd7 {[%clk 0:02:41.1]} 13. O-O {[%clk 0:01:43.3]} 13... Qe7 {[%clk
0:02:39.7]} 14. Rad1 {[%clk 0:01:42]} 14... Rfd8 {[%clk 0:02:39.2]} 15. Rd2
{[%clk 0:01:30.3]} 15... Nc5 {[%clk 0:02:35.3]} 16. Re2 {[%clk 0:01:00.4]} 16...
Ne6 {[%clk 0:02:25.8]} 17. Bxe6 {[%clk 0:00:40.5]} 17... Qxe6 {[%clk 0:02:26.7]}
18. Qe3 {[%clk 0:00:40.4]} 18... b6 {[%clk 0:02:20]} 19. f4 {[%clk 0:00:39.1]}
19... exf4 {[%clk 0:02:00]} 20. Qxf4 {[%clk 0:00:38.3]} 20... Rd7 {[%clk
0:01:23.8]} 21. Bxf6 {[%clk 0:00:28.7]} 21... Qxf6 {[%clk 0:01:20.6]} 22. Qxf6
{[%clk 0:00:26.9]} 22... gxf6 {[%clk 0:01:21.5]} 23. Rxf6 {[%clk 0:00:27.2]}
23... c5 {[%clk 0:01:20.7]} 24. e5 {[%clk 0:00:21.2]} 24... Re8 {[%clk
0:01:20.5]} 25. Kf2 {[%clk 0:00:19.4]} 25... Kg7 {[%clk 0:01:16.4]} 26. Rf4
{[%clk 0:00:19]} 26... Re6 {[%clk 0:01:16.1]} 27. Kf3 {[%clk 0:00:15.7]} 27...
Rde7 {[%clk 0:01:13]} 28. Rfe4 {[%clk 0:00:16]} 28... Rd7 {[%clk 0:01:11.6]} 29.
R4e3 {[%clk 0:00:07.8]} 29... Kf8 {[%clk 0:01:11.4]} 30. Rd3 {[%clk 0:00:07.9]}
30... Ke7 {[%clk 0:01:10.6]} 31. Rxd7+ {[%clk 0:00:07.1]} 31... Kxd7 {[%clk
0:01:11.5]} 32. Kf4 {[%clk 0:00:07.4]} 32... Kc6 {[%clk 0:01:12]} 33. Kf5 {[%clk
0:00:07.3]} 33... Kb5 {[%clk 0:01:10.7]} 34. Rd2 {[%clk 0:00:07.7]} 34... Re7
{[%clk 0:01:09.9]} 35. Re2 {[%clk 0:00:05.3]} 35... Ka4 {[%clk 0:01:07.6]} 36.
Kf6 {[%clk 0:00:05.1]} 36... Rc7 {[%clk 0:01:06]} 37. Rd2 {[%clk 0:00:01.4]}
37... Kxa3 {[%clk 0:01:04.4]} 38. Rd8 {[%clk 0:00:01.5]} 38... a5 {[%clk
0:01:01.9]} 39. Rh8 {[%clk 0:00:02.1]} 39... Kb2 {[%clk 0:01:00.6]} 40. Rxh7
{[%clk 0:00:02.4]} 40... a4 {[%clk 0:01:00.3]} 41. e6 {[%clk 0:00:02]} 41... Rc6
{[%clk 0:00:57.5]} 42. Rxf7 {[%clk 0:00:02.4]} 42... a3 {[%clk 0:00:57.2]} 43.
Ra7 {[%clk 0:00:03]} 43... a2 {[%clk 0:00:55.1]} 44. Kf7 {[%clk 0:00:03.4]}
44... a1=Q {[%clk 0:00:54.5]} 45. Rxa1 {[%clk 0:00:04.2]} 45... Kxa1 {[%clk
0:00:55.3]} 46. e7 {[%clk 0:00:05.1]} 46... Rc8 {[%clk 0:00:49]} 47. e8=Q {[%clk
0:00:05.3]} 47... Rxe8 {[%clk 0:00:49.6]} 48. Kxe8 {[%clk 0:00:06.2]} 48... Kb2
{[%clk 0:00:49.6]} 49. h4 {[%clk 0:00:06.7]} 49... Kxc2 {[%clk 0:00:49.5]} 50.
h5 {[%clk 0:00:07.6]} 50... Kxc3 {[%clk 0:00:50.4]} 51. h6 {[%clk 0:00:08]}
51... c4 {[%clk 0:00:51.3]} 52. h7 {[%clk 0:00:08.7]} 52... Kd2 {[%clk
0:00:51.4]} 53. h8=Q {[%clk 0:00:09.6]} 53... c3 {[%clk 0:00:52.3]} 54. Qd4+
{[%clk 0:00:09.9]} 1-0

[Event "Early-Titled-Tuesday-Blitz-March-05-2024"]
[Site "Chess.com"]
[Date "2024.03.05"]
[Round "3"]
[White "Joachim100x"]
[Black "NM_Antelacus"]
[Result "0-1"]
[WhiteElo "2460"]
[BlackElo "2273"]
[TimeControl "180+1"]
[EndTime "8:31:15 PST"]
[Termination "NM_Antelacus won on time"]

1. e4 {[%clk 0:03:00.9]} 1... c5 {[%clk 0:02:59.8]} 2. Nf3 {[%clk 0:03:00.8]}
2... Nc6 {[%clk 0:02:59.8]} 3. c3 {[%clk 0:03:00.8]} 3... Nf6 {[%clk 0:02:52.7]}
4. e5 {[%clk 0:03:00.9]} 4... Nd5 {[%clk 0:02:52.2]} 5. d4 {[%clk 0:03:01.2]}
5... cxd4 {[%clk 0:02:51.6]} 6. cxd4 {[%clk 0:03:01.4]} 6... g6 {[%clk
0:02:51.2]} 7. Bc4 {[%clk 0:03:01.1]} 7... Nb6 {[%clk 0:02:48]} 8. Bb3 {[%clk
0:03:01.1]} 8... Bg7 {[%clk 0:02:46.1]} 9. Nc3 {[%clk 0:03:00.9]} 9... O-O
{[%clk 0:02:44.7]} 10. O-O {[%clk 0:03:00.9]} 10... d5 {[%clk 0:02:43.9]} 11.
exd6 {[%clk 0:02:53.8]} 11... Qxd6 {[%clk 0:02:40.2]} 12. Be3 {[%clk 0:02:53.9]}
12... Bg4 {[%clk 0:02:37.9]} 13. h3 {[%clk 0:02:54]} 13... Bxf3 {[%clk
0:02:35.7]} 14. Qxf3 {[%clk 0:02:54]} 14... Nxd4 {[%clk 0:02:24.6]} 15. Bxd4
{[%clk 0:02:53.7]} 15... Qxd4 {[%clk 0:02:22.4]} 16. Qxb7 {[%clk 0:02:53.7]}
16... e6 {[%clk 0:02:12.1]} 17. Rad1 {[%clk 0:02:53.1]} 17... Qf4 {[%clk
0:02:10.9]} 18. Qf3 {[%clk 0:02:47.4]} 18... Qxf3 {[%clk 0:02:09.9]} 19. gxf3
{[%clk 0:02:47.6]} 19... Rfd8 {[%clk 0:02:09]} 20. Rfe1 {[%clk 0:02:45.2]} 20...
Kf8 {[%clk 0:02:07.4]} 21. Kf1 {[%clk 0:02:45.1]} 21... Ke7 {[%clk 0:02:07.3]}
22. Ke2 {[%clk 0:02:45.4]} 22... Rxd1 {[%clk 0:02:05.6]} 23. Rxd1 {[%clk
0:02:45.5]} 23... Rd8 {[%clk 0:02:05.5]} 24. Rxd8 {[%clk 0:02:45]} 24... Kxd8
{[%clk 0:02:06.4]} 25. Kd3 {[%clk 0:02:39.6]} 25... Ke7 {[%clk 0:02:03]} 26. a4
{[%clk 0:02:27.1]} 26... a6 {[%clk 0:01:56.9]} 27. a5 {[%clk 0:02:23.9]} 27...
Nd7 {[%clk 0:01:55.1]} 28. Bc4 {[%clk 0:02:21.2]} 28... Kd6 {[%clk 0:01:49.8]}
29. Ne4+ {[%clk 0:02:03]} 29... Kc6 {[%clk 0:01:46.1]} 30. Bxa6 {[%clk
0:01:58.2]} 30... Bxb2 {[%clk 0:01:42.3]} 31. Kc4 {[%clk 0:01:23.7]} 31... Ne5+
{[%clk 0:01:35.2]} 32. Kb4 {[%clk 0:01:22.8]} 32... Bd4 {[%clk 0:01:34]} 33.
Bb5+ {[%clk 0:01:22.5]} 33... Kd5 {[%clk 0:01:26.8]} 34. Nf6+ {[%clk 0:01:22.5]}
34... Kd6 {[%clk 0:01:25.2]} 35. Nxh7 {[%clk 0:01:06.2]} 35... Nxf3 {[%clk
0:01:21.1]} 36. Be2 {[%clk 0:00:54.4]} 36... Ng1 {[%clk 0:01:17.9]} 37. Ng5
{[%clk 0:00:52.3]} 37... Nxe2 {[%clk 0:01:14.3]} 38. Nxf7+ {[%clk 0:00:48.9]}
38... Kd5 {[%clk 0:01:14.1]} 39. f3 {[%clk 0:00:07.9]} 39... Ng1 {[%clk
0:01:10.9]} 40. Ng5 {[%clk 0:00:07.2]} 40... Be3 {[%clk 0:01:09.7]} 41. Ne4
{[%clk 0:00:06.6]} 41... Nxf3 {[%clk 0:01:05.7]} 42. Nf6+ {[%clk 0:00:06.7]}
42... Kc6 {[%clk 0:01:04]} 43. Ng4 {[%clk 0:00:05.8]} 43... Bd4 {[%clk
0:01:02.8]} 44. Kc4 {[%clk 0:00:05.8]} 44... e5 {[%clk 0:00:59.5]} 45. Kd3
{[%clk 0:00:05.1]} 45... Ng5 {[%clk 0:00:59.1]} 46. Nf6 {[%clk 0:00:03.8]} 46...
Nxh3 {[%clk 0:00:57.9]} 47. a6 {[%clk 0:00:03.5]} 47... Kb6 {[%clk 0:00:56.6]}
48. Nd7+ {[%clk 0:00:03.7]} 48... Kxa6 {[%clk 0:00:56]} 49. Nf8 {[%clk
0:00:04.6]} 49... Nf4+ {[%clk 0:00:54.5]} 50. Ke4 {[%clk 0:00:03.5]} 50... Kb5
{[%clk 0:00:54.7]} 0-1

[Event "Early-Titled-Tuesday-Blitz-March-05-2024"]
[Site "Chess.com"]
[Date "2024.03.05"]
[Round "3"]
[White "Lennis93"]
[Black "wonderfultime"]
[Result "0-1"]
[WhiteElo "2720"]
[BlackElo "3029"]
[TimeControl "180+1"]
[EndTime "8:31:16 PST"]
[Termination "wonderfultime won on time"]

1. Nf3 {[%clk 0:03:00.9]} 1... Nf6 {[%clk 0:02:59.5]} 2. d4 {[%clk 0:02:58.3]}
2... d5 {[%clk 0:03:00]} 3. g3 {[%clk 0:02:57]} 3... Bf5 {[%clk 0:02:59.6]} 4.
Bg2 {[%clk 0:02:57.3]} 4... e6 {[%clk 0:03:00.3]} 5. Nh4 {[%clk 0:02:56.7]} 5...
Be4 {[%clk 0:03:00.3]} 6. f3 {[%clk 0:02:56.9]} 6... Bg6 {[%clk 0:03:01]} 7.
Nxg6 {[%clk 0:02:52.6]} 7... hxg6 {[%clk 0:03:01.9]} 8. c4 {[%clk 0:02:39.4]}
8... c5 {[%clk 0:02:59.1]} 9. cxd5 {[%clk 0:02:35]} 9... Nxd5 {[%clk 0:02:47.7]}
10. e4 {[%clk 0:01:46.2]} 10... Nb6 {[%clk 0:02:46.1]} 11. Be3 {[%clk
0:01:43.7]} 11... cxd4 {[%clk 0:02:32.8]} 12. Qxd4 {[%clk 0:01:42.6]} 12... Nc6
{[%clk 0:02:29.3]} 13. Qxd8+ {[%clk 0:01:41.3]} 13... Rxd8 {[%clk 0:02:30.2]}
14. Nd2 {[%clk 0:01:32.9]} 14... Nb4 {[%clk 0:02:21.7]} 15. Bxb6 {[%clk
0:01:21.5]} 15... axb6 {[%clk 0:02:16.5]} 16. Ke2 {[%clk 0:01:21.6]} 16... Nc2
{[%clk 0:01:39.6]} 17. Rad1 {[%clk 0:01:20.5]} 17... Nd4+ {[%clk 0:01:40.1]} 18.
Kf1 {[%clk 0:01:18.4]} 18... Bc5 {[%clk 0:01:34.6]} 19. f4 {[%clk 0:01:08.4]}
19... Ke7 {[%clk 0:01:23.8]} 20. Nf3 {[%clk 0:00:55.2]} 20... Nc2 {[%clk
0:01:02.1]} 21. Ke2 {[%clk 0:00:50.8]} 21... Rxd1 {[%clk 0:00:58.8]} 22. Rxd1
{[%clk 0:00:50.4]} 22... Ne3 {[%clk 0:00:59.7]} 23. Rg1 {[%clk 0:00:47.4]} 23...
Nc4 {[%clk 0:00:28.3]} 24. Rb1 {[%clk 0:00:43.6]} 24... b5 {[%clk 0:00:28.4]}
25. a3 {[%clk 0:00:38.2]} 25... Rd8 {[%clk 0:00:27.4]} 26. Bf1 {[%clk
0:00:29.9]} 26... Bb6 {[%clk 0:00:22]} 27. Ke1 {[%clk 0:00:18.4]} 27... Ba5+
{[%clk 0:00:15.7]} 28. b4 {[%clk 0:00:16.2]} 28... Nxa3 {[%clk 0:00:15]} 29. Rb3
{[%clk 0:00:06.9]} 29... Bxb4+ {[%clk 0:00:15.6]} 30. Kf2 {[%clk 0:00:07]} 30...
Bc5+ {[%clk 0:00:16.3]} 31. Kg2 {[%clk 0:00:06.8]} 31... b4 {[%clk 0:00:17]} 32.
Ne5 {[%clk 0:00:07.1]} 32... Rd2+ {[%clk 0:00:16.2]} 33. Kh3 {[%clk 0:00:07.4]}
33... Nc2 {[%clk 0:00:13.3]} 0-1

[Event "Early-Titled-Tuesday-Blitz-March-05-2024"]
[Site "Chess.com"]
[Date "2024.03.05"]
[Round "3"]
[White "biostatistician"]
[Black "GilbertoHernandezAmura"]
[Result "1-0"]
[WhiteElo "2612"]
[BlackElo "2434"]
[TimeControl "180+1"]
[EndTime "8:31:17 PST"]
[Termination "biostatistician won by resignation"]

1. d4 {[%clk 0:03:00]} 1... Nf6 {[%clk 0:02:57.9]} 2. Nf3 {[%clk 0:03:00.2]}
2... c5 {[%clk 0:02:58]} 3. d5 {[%clk 0:03:00.2]} 3... e6 {[%clk 0:02:56.7]} 4.
c4 {[%clk 0:03:00.3]} 4... exd5 {[%clk 0:02:56.4]} 5. cxd5 {[%clk 0:03:01.2]}
5... d6 {[%clk 0:02:56.8]} 6. e4 {[%clk 0:03:01.2]} 6... g6 {[%clk 0:02:55]} 7.
Nc3 {[%clk 0:03:00.8]} 7... Bg7 {[%clk 0:02:54.8]} 8. h3 {[%clk 0:03:01.1]} 8...
O-O {[%clk 0:02:54.6]} 9. Bd3 {[%clk 0:03:01.2]} 9... Na6 {[%clk 0:02:48.6]} 10.
O-O {[%clk 0:03:00.6]} 10... Nc7 {[%clk 0:02:46.9]} 11. Re1 {[%clk 0:02:59.2]}
11... a6 {[%clk 0:02:40.5]} 12. a4 {[%clk 0:02:57.2]} 12... Re8 {[%clk
0:02:35.3]} 13. Bf4 {[%clk 0:02:52.3]} 13... Rb8 {[%clk 0:02:30]} 14. a5 {[%clk
0:02:47.8]} 14... b5 {[%clk 0:02:27.1]} 15. axb6 {[%clk 0:02:48.7]} 15... Rxb6
{[%clk 0:02:27.5]} 16. Qc2 {[%clk 0:02:39.6]} 16... Bd7 {[%clk 0:02:19.7]} 17.
Rad1 {[%clk 0:02:09.2]} 17... Qb8 {[%clk 0:01:33]} 18. Re2 {[%clk 0:02:01.9]}
18... Nh5 {[%clk 0:01:15.6]} 19. Bh2 {[%clk 0:01:58.7]} 19... Bb5 {[%clk
0:01:08.6]} 20. e5 {[%clk 0:01:52.3]} 20... Bxd3 {[%clk 0:01:03.5]} 21. Rxd3
{[%clk 0:01:37.6]} 21... c4 {[%clk 0:00:57.9]} 22. Rdd2 {[%clk 0:01:13.8]} 22...
dxe5 {[%clk 0:00:56.8]} 23. Nxe5 {[%clk 0:01:08.3]} 23... Qd8 {[%clk 0:00:41]}
24. Nc6 {[%clk 0:00:53.7]} 24... Qd7 {[%clk 0:00:32.4]} 25. Bxc7 {[%clk
0:00:52.5]} 25... Rxe2 {[%clk 0:00:32.4]} 26. Bxb6 {[%clk 0:00:27.9]} 26... Re1+
{[%clk 0:00:32.2]} 27. Kh2 {[%clk 0:00:28.4]} 27... Qd6+ {[%clk 0:00:31.8]} 28.
g3 {[%clk 0:00:27.1]} 28... f5 {[%clk 0:00:24.4]} 29. Re2 {[%clk 0:00:26.5]}
29... Ra1 {[%clk 0:00:23.9]} 30. Re8+ {[%clk 0:00:24.6]} 30... Kf7 {[%clk
0:00:24.1]} 31. Re7+ {[%clk 0:00:25]} 31... Kg8 {[%clk 0:00:21.6]} 32. Qe2
{[%clk 0:00:24.4]} 32... h6 {[%clk 0:00:17.5]} 33. Qe6+ {[%clk 0:00:22]} 33...
Qxe6 {[%clk 0:00:17.5]} 34. dxe6 {[%clk 0:00:21.6]} 34... f4 {[%clk 0:00:11.8]}
35. Re8+ {[%clk 0:00:21.3]} 35... Kh7 {[%clk 0:00:11.9]} 36. e7 {[%clk
0:00:21.8]} 36... fxg3+ {[%clk 0:00:12.4]} 37. fxg3 {[%clk 0:00:21.4]} 37... Re1
{[%clk 0:00:11.8]} 38. Bc5 {[%clk 0:00:20]} 38... Nf6 {[%clk 0:00:11.7]} 39. Rf8
{[%clk 0:00:19.5]} 39... Bxf8 {[%clk 0:00:11.4]} 40. exf8=Q {[%clk 0:00:19.5]}
1-0

[Event "Early-Titled-Tuesday-Blitz-March-05-2024"]
[Site "Chess.com"]
[Date "2024.03.05"]
[Round "3"]
[White "UK_23"]
[Black "Dale"]
[Result "0-1"]
[WhiteElo "2357"]
[BlackElo "2103"]
[TimeControl "180+1"]
[EndTime "8:31:18 PST"]
[Termination "Dale won by resignation"]

1. e4 {[%clk 0:01:15.1]} 1... c5 {[%clk 0:02:59.1]} 2. Nf3 {[%clk 0:01:09.9]}
2... d6 {[%clk 0:02:59.4]} 3. d4 {[%clk 0:01:09.1]} 3... cxd4 {[%clk 0:03:00.3]}
4. Qxd4 {[%clk 0:01:09]} 4... Nc6 {[%clk 0:02:56.6]} 5. Qe3 {[%clk 0:01:08.8]}
5... Nf6 {[%clk 0:02:55.9]} 6. h3 {[%clk 0:01:08]} 6... e5 {[%clk 0:02:49.5]} 7.
Be2 {[%clk 0:01:08.2]} 7... d5 {[%clk 0:02:47.3]} 8. exd5 {[%clk 0:01:06.5]}
8... Nxd5 {[%clk 0:02:46.7]} 9. Qb3 {[%clk 0:01:01.7]} 9... Bb4+ {[%clk
0:02:40.9]} 10. c3 {[%clk 0:01:01.5]} 10... Be7 {[%clk 0:02:32.9]} 11. O-O
{[%clk 0:00:59.2]} 11... Nb6 {[%clk 0:02:22]} 12. Rd1 {[%clk 0:00:58.5]} 12...
Qc7 {[%clk 0:02:19.1]} 13. Ng5 {[%clk 0:00:52.9]} 13... O-O {[%clk 0:02:17.7]}
14. Be3 {[%clk 0:00:48.5]} 14... h6 {[%clk 0:02:13.1]} 15. Ne4 {[%clk
0:00:48.1]} 15... Be6 {[%clk 0:02:08.9]} 16. Qc2 {[%clk 0:00:47.6]} 16... Rad8
{[%clk 0:01:56]} 17. Nc5 {[%clk 0:00:44.3]} 17... Rxd1+ {[%clk 0:01:55.2]} 18.
Qxd1 {[%clk 0:00:42.6]} 18... Bc8 {[%clk 0:01:53.8]} 19. Nd2 {[%clk 0:00:39.9]}
19... Rd8 {[%clk 0:01:44.4]} 20. Qc2 {[%clk 0:00:38.6]} 20... Nd5 {[%clk
0:01:28.9]} 21. Ndb3 {[%clk 0:00:32]} 21... Nxe3 {[%clk 0:01:25.5]} 22. fxe3
{[%clk 0:00:32.9]} 22... b6 {[%clk 0:01:13.5]} 23. Ne4 {[%clk 0:00:31.5]} 23...
Nb4 {[%clk 0:01:01.9]} 24. Qb1 {[%clk 0:00:28.2]} 24... Nd5 {[%clk 0:01:00.1]}
25. Qc1 {[%clk 0:00:26.5]} 25... f5 {[%clk 0:00:55.9]} 26. Ng3 {[%clk
0:00:23.8]} 26... a5 {[%clk 0:00:48.6]} 27. a4 {[%clk 0:00:22.1]} 27... e4
{[%clk 0:00:39.9]} 28. Nh5 {[%clk 0:00:19.6]} 28... Bg5 {[%clk 0:00:36.5]} 29.
Nf4 {[%clk 0:00:19.1]} 29... Bxf4 {[%clk 0:00:29.9]} 30. exf4 {[%clk 0:00:20]}
30... Nxf4 {[%clk 0:00:30.1]} 31. Bf1 {[%clk 0:00:19.7]} 31... Nd3 {[%clk
0:00:24.5]} 32. Qc2 {[%clk 0:00:17.1]} 32... Be6 {[%clk 0:00:22.8]} 33. Nd2
{[%clk 0:00:15.6]} 33... Qc5+ {[%clk 0:00:19.7]} 34. Kh2 {[%clk 0:00:15.2]}
34... Qf2 {[%clk 0:00:17.9]} 35. Rd1 {[%clk 0:00:12.9]} 35... f4 {[%clk
0:00:10.4]} 36. Nxe4 {[%clk 0:00:12.2]} 36... Qxc2 {[%clk 0:00:08.3]} 37. Rxd3
{[%clk 0:00:09]} 37... Rxd3 {[%clk 0:00:07.9]} 0-1

[Event "Early-Titled-Tuesday-Blitz-March-05-2024"]
[Site "Chess.com"]
[Date "2024.03.05"]
[Round "3"]
[White "FoxOnTheRun97"]
[Black "Bauman_Guy"]
[Result "0-1"]
[WhiteElo "2635"]
[BlackElo "2916"]
[TimeControl "180+1"]
[EndTime "8:31:20 PST"]
[Termination "Bauman_Guy won by checkmate"]

1. d4 {[%clk 0:03:00.9]} 1... Nf6 {[%clk 0:02:59.3]} 2. Bg5 {[%clk 0:03:01.2]}
2... Ne4 {[%clk 0:02:58.8]} 3. h4 {[%clk 0:03:01.6]} 3... d5 {[%clk 0:02:57.3]}
4. Nd2 {[%clk 0:03:02.1]} 4... Nxg5 {[%clk 0:02:57]} 5. hxg5 {[%clk 0:03:03]}
5... c5 {[%clk 0:02:56]} 6. e3 {[%clk 0:03:02.4]} 6... Nc6 {[%clk 0:02:56.3]} 7.
c3 {[%clk 0:03:02.4]} 7... e5 {[%clk 0:02:55.4]} 8. dxe5 {[%clk 0:03:01.7]} 8...
Nxe5 {[%clk 0:02:53.6]} 9. Ngf3 {[%clk 0:03:01.7]} 9... Nxf3+ {[%clk 0:02:53.7]}
10. Nxf3 {[%clk 0:03:00.7]} 10... Be7 {[%clk 0:02:54]} 11. Bd3 {[%clk
0:02:16.7]} 11... g6 {[%clk 0:02:51.1]} 12. Bb5+ {[%clk 0:02:03.5]} 12... Kf8
{[%clk 0:02:49.1]} 13. b4 {[%clk 0:01:40.4]} 13... Qc7 {[%clk 0:02:29.7]} 14.
bxc5 {[%clk 0:01:36.6]} 14... Bxc5 {[%clk 0:02:24.8]} 15. Qxd5 {[%clk 0:01:29]}
15... Be6 {[%clk 0:02:24.6]} 16. Qe5 {[%clk 0:01:24.8]} 16... Qxe5 {[%clk
0:02:24.4]} 17. Nxe5 {[%clk 0:01:25.7]} 17... Ke7 {[%clk 0:02:23.3]} 18. Ke2
{[%clk 0:01:23.5]} 18... a6 {[%clk 0:02:22.6]} 19. Bc4 {[%clk 0:01:18.8]} 19...
Rac8 {[%clk 0:02:09.4]} 20. Bxe6 {[%clk 0:01:17.1]} 20... Kxe6 {[%clk
0:02:10.3]} 21. Nd3 {[%clk 0:01:16.9]} 21... Be7 {[%clk 0:02:09.9]} 22. Nf4+
{[%clk 0:01:00]} 22... Kf5 {[%clk 0:02:07]} 23. Nd5 {[%clk 0:00:56.8]} 23...
Bxg5 {[%clk 0:02:03.9]} 24. Rab1 {[%clk 0:00:51.5]} 24... Rhd8 {[%clk
0:01:59.3]} 25. Kf3 {[%clk 0:00:42.9]} 25... Ke5 {[%clk 0:01:44.7]} 26. Nf4
{[%clk 0:00:36.2]} 26... Rxc3 {[%clk 0:01:31.9]} 27. Ne2 {[%clk 0:00:34.2]}
27... Rc2 {[%clk 0:01:31]} 28. Rxb7 {[%clk 0:00:32.2]} 28... Rdd2 {[%clk
0:01:30.7]} 29. Re1 {[%clk 0:00:26.8]} 29... f5 {[%clk 0:01:24.8]} 30. a4 {[%clk
0:00:26.4]} 30... Ra2 {[%clk 0:01:18.3]} 31. Rxh7 {[%clk 0:00:18.2]} 31... Bd8
{[%clk 0:01:16.1]} 32. Ra7 {[%clk 0:00:12.2]} 32... g5 {[%clk 0:01:16.4]} 33. g4
{[%clk 0:00:01.8]} 33... Rxa4 {[%clk 0:00:54.8]} 34. gxf5 {[%clk 0:00:01.2]}
34... g4+ {[%clk 0:00:46.9]} 35. Kg2 {[%clk 0:00:01.5]} 35... Bb6 {[%clk
0:00:47.4]} 36. Ng3 {[%clk 0:00:01.9]} 36... Bxa7 {[%clk 0:00:47.3]} 37. Rc1
{[%clk 0:00:01.7]} 37... Raa2 {[%clk 0:00:47.6]} 38. Nh1 {[%clk 0:00:02]} 38...
Kxf5 {[%clk 0:00:46]} 39. Rc6 {[%clk 0:00:01.9]} 39... Bxe3 {[%clk 0:00:45.6]}
40. Rc7 {[%clk 0:00:01.2]} 40... Bf4 {[%clk 0:00:42.3]} 41. Rf7+ {[%clk
0:00:01.3]} 41... Ke4 {[%clk 0:00:42.6]} 42. Re7+ {[%clk 0:00:01.6]} 42... Kd5
{[%clk 0:00:42.5]} 43. Rg7 {[%clk 0:00:02.5]} 43... g3 {[%clk 0:00:42]} 44. Nxg3
{[%clk 0:00:02.4]} 44... Rxf2+ {[%clk 0:00:41.8]} 45. Kh3 {[%clk 0:00:02.9]}
45... Rh2+ {[%clk 0:00:41.8]} 46. Kg4 {[%clk 0:00:03.4]} 46... Bxg3 {[%clk
0:00:42.7]} 47. Ra7 {[%clk 0:00:02.7]} 47... Bd6 {[%clk 0:00:41.5]} 48. Kf3
{[%clk 0:00:03.1]} 48... Rhf2+ {[%clk 0:00:41.4]} 49. Kg4 {[%clk 0:00:03.7]}
49... Ra3 {[%clk 0:00:40.8]} 50. Rb7 {[%clk 0:00:04]} 50... Rg3+ {[%clk
0:00:40.9]} 51. Kh4 {[%clk 0:00:04.5]} 51... Rh2# {[%clk 0:00:41.8]} 0-1

[Event "Early-Titled-Tuesday-Blitz-March-05-2024"]
[Site "Chess.com"]
[Date "2024.03.05"]
[Round "3"]
[White "aljado"]
[Black "Hui_Li_Macau"]
[Result "0-1"]
[WhiteElo "2057"]
[BlackElo "2392"]
[TimeControl "180+1"]
[EndTime "8:31:20 PST"]
[Termination "Hui_Li_Macau won on time"]

1. e4 {[%clk 0:03:00.9]} 1... e5 {[%clk 0:02:59.6]} 2. Nf3 {[%clk 0:03:00.4]}
2... Nf6 {[%clk 0:02:59.8]} 3. Nxe5 {[%clk 0:02:59.3]} 3... d6 {[%clk
0:02:59.8]} 4. Nf3 {[%clk 0:02:58.2]} 4... Nxe4 {[%clk 0:03:00.2]} 5. c4 {[%clk
0:02:58.4]} 5... Nc6 {[%clk 0:02:59.9]} 6. d4 {[%clk 0:02:57.2]} 6... d5 {[%clk
0:02:59.5]} 7. Bd3 {[%clk 0:02:56.7]} 7... Bb4+ {[%clk 0:02:58.8]} 8. Nbd2
{[%clk 0:02:50.9]} 8... Bf5 {[%clk 0:02:43.1]} 9. O-O {[%clk 0:02:49]} 9... Nxd2
{[%clk 0:02:39.3]} 10. Bxf5 {[%clk 0:02:39.1]} 10... Nxf1 {[%clk 0:02:35.7]} 11.
Qb3 {[%clk 0:02:10.4]} 11... dxc4 {[%clk 0:02:01.2]} 12. Qxc4 {[%clk 0:02:05.7]}
12... Bd6 {[%clk 0:01:50.2]} 13. Bg5 {[%clk 0:01:53.2]} 13... Ne7 {[%clk
0:01:46]} 14. Rxf1 {[%clk 0:01:26.5]} 14... h6 {[%clk 0:01:38.1]} 15. Bxe7
{[%clk 0:01:21.3]} 15... Bxe7 {[%clk 0:01:37.1]} 16. Ne5 {[%clk 0:01:11.8]}
16... Rf8 {[%clk 0:00:46.5]} 17. Bd7+ {[%clk 0:01:01.1]} 17... Qxd7 {[%clk
0:00:46.6]} 18. Nxd7 {[%clk 0:01:00.8]} 18... Kxd7 {[%clk 0:00:47.5]} 19. Qd5+
{[%clk 0:00:51]} 19... Bd6 {[%clk 0:00:40.8]} 20. Qxb7 {[%clk 0:00:44.5]} 20...
Rab8 {[%clk 0:00:34]} 21. Qxa7 {[%clk 0:00:43.7]} 21... Rxb2 {[%clk 0:00:33.8]}
22. Qa4+ {[%clk 0:00:35]} 22... Kd8 {[%clk 0:00:29.5]} 23. g3 {[%clk 0:00:29.5]}
23... Rb4 {[%clk 0:00:27.1]} 24. Qc6 {[%clk 0:00:21.3]} 24... Rb6 {[%clk
0:00:26.6]} 25. Qa8+ {[%clk 0:00:17.1]} 25... Kd7 {[%clk 0:00:25.9]} 26. Qa4+
{[%clk 0:00:14.6]} 26... Ke7 {[%clk 0:00:21]} 27. Re1+ {[%clk 0:00:12.5]} 27...
Kf6 {[%clk 0:00:21.5]} 28. d5 {[%clk 0:00:08.9]} 28... Rb4 {[%clk 0:00:10.5]}
29. Qc6 {[%clk 0:00:04.7]} 29... g6 {[%clk 0:00:09.1]} 30. Qc3+ {[%clk
0:00:03.4]} 30... Kf5 {[%clk 0:00:08.5]} 0-1